fUST/lending_fUST_20250619
["ID","MTS","AMOUNT","RATE_DAILY","PERIOD"]
[366484227,1750283449223,-780.23,0.00023013,6]
[366484228,1750283449233,-500.0,0.00023561,6]
[366484229,1750283449243,-500.0,0.00023588,6]
[366484230,1750283449252,-469.03557909,0.00023615,6]
[366484231,1750283449262,-487.73323315,0.000238,2]
[366484232,1750283449272,-91.12488912,0.000238,2]
[366484233,1750283449472,-780.23,0.00023287,6]
[366484234,1750283449481,-780.23,0.00023561,6]
[366484235,1750283449490,-2908.87511088,0.000238,2]
[366484236,1750283449499,-10219.02344362,0.000238,7]
[366484237,1750283449625,-648.03,0.00023002,10]
[366484238,1750283449634,-230.39526265,0.00023451,6]
[366484239,1750283449644,-4071.07934608,0.000238,7]
[366484240,1750283449655,-1048.79303016,0.000238,7]
[366484241,1750283449679,-17172.77892716,0.000238,7]
[366484242,1750283449775,-3026.59199143,0.000238,7]
[366484243,1750283449796,-2128.61839353,0.000238,7]
[366484244,1750283449807,-5218.13937157,0.000238,7]
[366484245,1750283500045,166.57,0.00018654,2]
[366484247,1750283580738,164.45,0.0001873,2]
[366484248,1750283659814,162.36,0.00018725,2]
[366484249,1750283740122,160.29,0.00018607,2]
[366484251,1750283819448,164.62,0.00018256,2]
[366484252,1750283820714,-164.90024098,0.00019125,2]
[366484253,1750283900535,160.42,0.00018345,2]
[366484254,1750283981362,175.74,0.00018319,2]
[366484255,1750284061970,173.51,0.00018377,2]
[366484256,1750284114696,174.0360554,0.0002523,120]
[366484258,1750284142118,171.3,0.00018256,2]
[366484259,1750284222937,169.12,0.00018255,2]
[366484260,1750284301763,166.96,0.000183,2]
[366484261,1750284324965,215.598463,0.00013699,2]
[366484263,1750284381589,164.84,0.00018316,2]
[366484264,1750284460154,162.74,0.00018317,2]
[366484266,1750284540030,160.67,0.00018257,2]
[366484268,1750284620646,158.63,0.00018278,2]
[366484275,1750284632044,-317.25,0.00019149,2]
[366484276,1750284632054,-157.95197,0.00019794,2]
[366484277,1750284632064,-87.43844307,0.00020019,2]
[366484278,1750284632076,-388.44155693,0.00020019,2]
[366484279,1750284632086,-215.598463,0.00020187,2]
[366484280,1750284632100,-1000.0,0.00020355,2]
[366484281,1750284632109,-150.86069342,0.00020559,2]
[366484282,1750284632119,-300.0,0.00020576,2]
[366484283,1750284632129,-212.0,0.00020576,2]
[366484284,1750284632139,-300.0,0.00020576,2]
[366484286,1750284632148,-300.0,0.00020576,2]
[366484287,1750284632158,-1200.0,0.00020576,2]
[366484289,1750284632169,-300.0,0.00020576,2]
[366484291,1750284632178,-500.0,0.00020577,2]
[366484293,1750284632188,-550.0,0.00020577,2]
[366484295,1750284632198,-178.81539336,0.00020577,2]
[366484297,1750284632207,-1943.2626827,0.00020578,2]
[366484300,1750284632228,-22956.7373173,0.00020578,2]
[366484302,1750284632239,-166.475658,0.00020659,2]
[366484304,1750284632248,-204.937,0.00020689,2]
[366484305,1750284632259,-634.5,0.00020889,2]
[366484307,1750284632268,-150.86069339,0.00021464,2]
[366484309,1750284632279,-793.13,0.0002176,2]
[366484311,1750284632288,-1027.93435677,0.000219,6]
[366484313,1750284632299,-304.62,0.00021907,3]
[366484315,1750284632308,-540.02,0.00021907,10]
[366484317,1750284632318,-450.02,0.00021907,10]
[366484319,1750284632327,-160.0,0.00021916,2]
[366484320,1750284632337,-430.0,0.00021917,6]
[366484322,1750284632346,-430.84346304,0.00021917,6]
[366484324,1750284632356,-430.0,0.00021917,6]
[366484326,1750284632366,-430.0,0.00021917,6]
[366484328,1750284632375,-430.0,0.00021917,6]
[366484330,1750284632385,-451.0360057,0.00021917,6]
[366484332,1750284632394,-460.0,0.00021917,6]
[366484334,1750284632403,-493.24934284,0.00021917,6]
[366484336,1750284632413,-430.0,0.00021917,6]
[366484337,1750284632422,-430.0,0.00021917,6]
[366484339,1750284632432,-481.63,0.00021917,6]
[366484341,1750284632441,-451.0,0.00021917,6]
[366484343,1750284632450,-430.0,0.00021917,6]
[366484345,1750284632459,-430.0,0.00021917,6]
[366484347,1750284632469,-430.0,0.00021917,6]
[366484348,1750284632478,-460.0,0.00021917,6]
[366484350,1750284632488,-430.0,0.00021917,6]
[366484352,1750284632498,-460.0,0.00021917,6]
[366484354,1750284632507,-430.0,0.00021917,6]
[366484356,1750284632516,-460.0,0.00021917,6]
[366484358,1750284632525,-454.7468304,0.00021917,6]
[366484359,1750284632534,-460.0,0.00021917,6]
[366484361,1750284632543,-385.23465037,0.00021917,6]
[366484363,1750284632552,-284.12473251,0.00021917,6]
[366484365,1750284632562,-385.56374583,0.00021917,6]
[366484367,1750284632571,-430.0,0.00021917,6]
[366484369,1750284632580,-460.0,0.00021917,6]
[366484371,1750284632589,-460.0,0.00021917,6]
[366484372,1750284632599,-460.0,0.00021917,6]
[366484374,1750284632608,-460.0,0.00021917,6]
[366484376,1750284632617,-430.0,0.00021917,6]
[366484378,1750284632626,-430.0,0.00021917,6]
[366484380,1750284632635,-460.0,0.00021917,6]
[366484382,1750284632645,-492.66225048,0.00021917,6]
[366484384,1750284632654,-430.0,0.00021917,6]
[366484386,1750284632664,-285.0,0.00021917,6]
[366484388,1750284632673,-460.0,0.00021917,6]
[366484389,1750284632682,-440.0,0.00021917,6]
[366484391,1750284632692,-503.38170601,0.00021917,6]
[366484393,1750284632701,-542.95315209,0.00021917,6]
[366484395,1750284632710,-430.0,0.00021917,6]
[366484397,1750284632720,-430.0,0.00021917,6]
[366484399,1750284632731,-441.49245202,0.00021917,6]
[366484401,1750284632740,-430.0,0.00021917,6]
[366484403,1750284632750,-460.0,0.00021917,6]
[366484405,1750284632763,-460.0,0.00021917,6]
[366484407,1750284632772,-460.0,0.00021917,6]
[366484408,1750284632782,-430.0,0.00021917,6]
[366484410,1750284632791,-440.0,0.00021917,6]
[366484412,1750284632800,-460.0,0.00021917,6]
[366484414,1750284632809,-460.0,0.00021917,6]
[366484416,1750284632819,-440.0,0.00021917,6]
[366484418,1750284632828,-460.0,0.00021917,6]
[366484420,1750284632837,-440.0,0.00021917,6]
[366484421,1750284632847,-440.0,0.00021917,6]
[366484423,1750284632856,-430.0,0.00021917,6]
[366484425,1750284632865,-460.0,0.00021917,6]
[366484427,1750284632874,-323.27982967,0.00021917,6]
[366484429,1750284632884,-440.0,0.00021917,6]
[366484431,1750284632893,-430.0,0.00021917,6]
[366484433,1750284632903,-440.0,0.00021917,6]
[366484434,1750284632912,-469.1,0.00021917,6]
[366484436,1750284632921,-430.0,0.00021917,6]
[366484438,1750284632930,-430.0,0.00021917,6]
[366484439,1750284632939,-460.0,0.00021917,6]
[366484440,1750284632947,-173.29054747,0.00021917,6]
[366484441,1750284632955,-430.0,0.00021917,6]
[366484443,1750284632964,-581.23,0.00021917,6]
[366484445,1750284632973,-430.0,0.00021917,6]
[366484447,1750284632984,-440.0,0.00021917,6]
[366484449,1750284632994,-430.0,0.00021917,6]
[366484450,1750284633004,-460.0,0.00021917,6]
[366484452,1750284633014,-497.35,0.00021917,6]
[366484454,1750284633024,-430.0,0.00021917,6]
[366484456,1750284633034,-401.63623618,0.00021917,6]
[366484457,1750284633043,-460.0,0.00021917,6]
[366484458,1750284633052,-450.0,0.00021917,6]
[366484459,1750284633062,-440.0,0.00021917,6]
[366484460,1750284633071,-390.0,0.00021917,6]
[366484461,1750284633082,-460.0,0.00021917,6]
[366484462,1750284633094,-507.37100855,0.00021917,6]
[366484463,1750284633103,-460.0,0.00021917,6]
[366484464,1750284633113,-460.0,0.00021917,6]
[366484465,1750284633123,-500.0,0.00021917,6]
[366484466,1750284633133,-403.12018825,0.00021917,6]
[366484467,1750284633142,-1000.0,0.00021917,6]
[366484468,1750284633151,-450.0,0.00021917,6]
[366484469,1750284633160,-430.0,0.00021917,6]
[366484470,1750284633171,-452.28820013,0.00021917,6]
[366484471,1750284633181,-460.0,0.00021917,6]
[366484472,1750284633190,-430.0,0.00021917,6]
[366484473,1750284633200,-460.0,0.00021917,6]
[366484474,1750284633210,-450.0,0.00021917,6]
[366484475,1750284633219,-450.52192095,0.00021917,6]
[366484476,1750284633228,-430.0,0.00021917,6]
[366484477,1750284633239,-440.0,0.00021917,6]
[366484478,1750284633249,-430.0,0.00021917,6]
[366484479,1750284633258,-430.0,0.00021917,6]
[366484480,1750284633267,-460.0,0.00021917,6]
[366484481,1750284633277,-430.0,0.00021917,6]
[366484482,1750284633286,-402.20580863,0.00021917,6]
[366484483,1750284633296,-440.0,0.00021917,6]
[366484484,1750284633305,-430.0,0.00021917,6]
[366484485,1750284633314,-658.34,0.00021917,6]
[366484486,1750284633324,-450.0,0.00021917,6]
[366484487,1750284633334,-460.0,0.00021917,6]
[366484488,1750284633343,-460.0,0.00021917,6]
[366484489,1750284633353,-430.0,0.00021917,6]
[366484490,1750284633363,-460.0,0.00021917,6]
[366484491,1750284633372,-430.0,0.00021917,6]
[366484492,1750284633382,-430.0,0.00021917,6]
[366484493,1750284633392,-460.0,0.00021917,6]
[366484494,1750284633402,-460.0,0.00021917,6]
[366484495,1750284633412,-400.0,0.00021917,6]
[366484496,1750284633421,-430.0,0.00021917,6]
[366484497,1750284633431,-430.0,0.00021917,6]
[366484498,1750284633441,-430.0,0.00021917,6]
[366484499,1750284633451,-430.0,0.00021917,6]
[366484500,1750284633460,-658.06,0.00021917,6]
[366484501,1750284633469,-430.0,0.00021917,6]
[366484502,1750284633479,-460.0,0.00021917,6]
[366484503,1750284633489,-430.0,0.00021917,6]
[366484504,1750284633498,-380.0,0.00021917,6]
[366484505,1750284633508,-460.0,0.00021917,6]
[366484506,1750284633517,-250.87192754,0.00021917,6]
[366484507,1750284633526,-208.32394039,0.00021917,6]
[366484508,1750284633535,-178.13971711,0.00021917,6]
[366484509,1750284633544,-430.0,0.00021917,6]
[366484510,1750284633554,-460.0,0.00021917,6]
[366484511,1750284633564,-430.0,0.00021917,6]
[366484512,1750284633573,-460.0,0.00021917,6]
[366484513,1750284633583,-430.0,0.00021917,6]
[366484514,1750284633592,-460.0,0.00021917,6]
[366484515,1750284633602,-413.47130291,0.00021917,6]
[366484516,1750284633611,-460.0,0.00021917,6]
[366484518,1750284633620,-460.0,0.00021917,6]
[366484519,1750284633630,-430.0,0.00021917,6]
[366484520,1750284633639,-460.0,0.00021917,6]
[366484521,1750284633648,-430.0,0.00021917,6]
[366484522,1750284633658,-430.0,0.00021917,6]
[366484524,1750284633667,-430.0,0.00021917,6]
[366484525,1750284633677,-430.0,0.00021917,6]
[366484526,1750284633685,-460.0,0.00021917,6]
[366484528,1750284633694,-460.0,0.00021917,6]
[366484529,1750284633704,-460.0,0.00021917,6]
[366484531,1750284633713,-460.0,0.00021917,6]
[366484533,1750284633723,-460.0,0.00021917,6]
[366484534,1750284633733,-460.0,0.00021917,6]
[366484536,1750284633743,-460.0,0.00021917,6]
[366484537,1750284633753,-173.3084211,0.00021917,6]
[366484540,1750284633913,-500.0,0.00021917,6]
[366484541,1750284633925,-500.0,0.00021917,6]
[366484542,1750284633935,-500.0,0.00021917,6]
[366484543,1750284633945,-500.0,0.00021917,6]
[366484544,1750284633955,-500.0,0.00021917,6]
[366484545,1750284633965,-273.53665206,0.00021917,6]
[366484546,1750284633975,-460.0,0.00021917,6]
[366484547,1750284633986,-460.0,0.00021917,6]
[366484548,1750284633995,-430.0,0.00021917,6]
[366484549,1750284634005,-460.0,0.00021917,6]
[366484550,1750284634015,-460.0,0.00021917,6]
[366484551,1750284634025,-716.16,0.00021917,6]
[366484552,1750284634034,-376.86585796,0.00021917,6]
[366484553,1750284634044,-460.0,0.00021917,6]
[366484554,1750284634055,-570.0,0.00021917,6]
[366484555,1750284634064,-430.0,0.00021917,6]
[366484556,1750284634074,-503.58836565,0.00021917,6]
[366484557,1750284634084,-500.0,0.00021917,6]
[366484558,1750284634095,-500.0,0.00021917,6]
[366484559,1750284634105,-500.0,0.00021917,6]
[366484560,1750284634114,-440.0,0.00021917,6]
[366484561,1750284634124,-500.0,0.00021917,6]
[366484562,1750284634134,-500.0,0.00021917,6]
[366484563,1750284634143,-460.0,0.00021917,6]
[366484564,1750284634153,-460.0,0.00021917,6]
[366484565,1750284634162,-430.0,0.00021917,6]
[366484566,1750284634172,-460.0,0.00021917,6]
[366484567,1750284634181,-1124.8,0.00021917,6]
[366484568,1750284634191,-460.0,0.00021917,6]
[366484569,1750284634200,-460.0,0.00021917,6]
[366484570,1750284634210,-460.0,0.00021917,6]
[366484571,1750284634219,-654.41,0.00021917,6]
[366484572,1750284634229,-440.0,0.00021917,6]
[366484573,1750284634239,-460.0,0.00021917,6]
[366484574,1750284634248,-430.0,0.00021917,6]
[366484575,1750284634258,-460.0,0.00021917,6]
[366484576,1750284634268,-703.2,0.00021917,6]
[366484577,1750284634278,-868.61,0.00021917,6]
[366484578,1750284634289,-264.69644418,0.00021917,6]
[366484579,1750284634299,-460.0,0.00021917,6]
[366484580,1750284634308,-430.0,0.00021917,6]
[366484581,1750284634318,-625.09,0.00021917,6]
[366484582,1750284634328,-430.0,0.00021917,6]
[366484583,1750284634338,-430.0,0.00021917,6]
[366484584,1750284634347,-460.0,0.00021917,6]
[366484585,1750284634358,-4118.98,0.00021917,6]
[366484586,1750284634369,-460.0,0.00021917,6]
[366484587,1750284634379,-460.0,0.00021917,6]
[366484588,1750284634389,-460.0,0.00021917,6]
[366484589,1750284634397,-430.0,0.00021917,6]
[366484590,1750284634407,-674.24,0.00021917,6]
[366484591,1750284634417,-452.22842123,0.00021917,6]
[366484592,1750284634427,-460.0,0.00021917,6]
[366484593,1750284634436,-460.0,0.00021917,6]
[366484594,1750284634446,-460.0,0.00021917,6]
[366484595,1750284634456,-460.0,0.00021917,6]
[366484596,1750284634465,-460.0,0.00021917,6]
[366484597,1750284634474,-460.0,0.00021917,6]
[366484598,1750284634483,-460.0,0.00021917,6]
[366484599,1750284634493,-3710.23,0.00021917,6]
[366484600,1750284634502,-763.45,0.00021917,6]
[366484601,1750284634511,-460.0,0.00021917,6]
[366484602,1750284634521,-430.0,0.00021917,6]
[366484603,1750284634530,-430.0,0.00021917,6]
[366484604,1750284634540,-430.0,0.00021917,6]
[366484605,1750284634549,-460.0,0.00021917,6]
[366484606,1750284634558,-460.0,0.00021917,6]
[366484607,1750284634568,-611.96,0.00021917,6]
[366484608,1750284634578,-2017.81,0.00021917,6]
[366484609,1750284634587,-430.0,0.00021917,6]
[366484610,1750284634596,-430.0,0.00021917,6]
[366484611,1750284634606,-1455.07,0.00021917,6]
[366484612,1750284634615,-240.0,0.00021917,6]
[366484613,1750284634624,-460.0,0.00021917,6]
[366484614,1750284634633,-430.0,0.00021917,6]
[366484615,1750284634642,-430.0,0.00021917,6]
[366484616,1750284634651,-450.0,0.00021917,6]
[366484617,1750284634661,-2694.63,0.00021917,6]
[366484618,1750284634671,-1534.6,0.00021917,6]
[366484619,1750284634680,-430.0,0.00021917,6]
[366484620,1750284634690,-401.04471963,0.00021917,6]
[366484621,1750284634699,-460.0,0.00021917,6]
[366484622,1750284634708,-430.0,0.00021917,6]
[366484623,1750284634718,-460.0,0.00021917,6]
[366484624,1750284634727,-460.0,0.00021917,6]
[366484625,1750284634737,-420.0,0.00021917,6]
[366484626,1750284634747,-430.0,0.00021917,6]
[366484627,1750284634756,-430.0,0.00021917,6]
[366484628,1750284634766,-460.0,0.00021917,6]
[366484629,1750284634775,-400.48370489,0.00021917,6]
[366484630,1750284634784,-430.0,0.00021917,6]
[366484631,1750284634794,-451.16440759,0.00021917,6]
[366484632,1750284634803,-473.47,0.00021917,6]
[366484633,1750284634811,-460.0,0.00021917,6]
[366484634,1750284634821,-626.77,0.00021917,6]
[366484635,1750284634830,-450.0,0.00021917,6]
[366484636,1750284634840,-460.0,0.00021917,6]
[366484637,1750284634849,-460.0,0.00021917,6]
[366484638,1750284634858,-460.0,0.00021917,6]
[366484639,1750284634868,-460.0,0.00021917,6]
[366484640,1750284634877,-460.0,0.00021917,6]
[366484641,1750284634887,-966.66,0.00021917,6]
[366484642,1750284634896,-430.0,0.00021917,6]
[366484643,1750284634905,-634.61,0.00021917,6]
[366484644,1750284634914,-460.0,0.00021917,6]
[366484645,1750284634923,-1208.82,0.00021917,6]
[366484646,1750284634932,-460.0,0.00021917,6]
[366484647,1750284634942,-460.0,0.00021917,6]
[366484648,1750284634951,-460.0,0.00021917,6]
[366484649,1750284634960,-430.0,0.00021917,6]
[366484650,1750284634969,-460.0,0.00021917,6]
[366484651,1750284634979,-430.0,0.00021917,6]
[366484652,1750284634989,-430.0,0.00021917,6]
[366484653,1750284634998,-450.0,0.00021917,6]
[366484654,1750284635007,-460.0,0.00021917,6]
[366484655,1750284635016,-452.15563039,0.00021917,6]
[366484656,1750284635025,-460.0,0.00021917,6]
[366484657,1750284635034,-460.0,0.00021917,6]
[366484658,1750284635043,-400.0,0.00021917,6]
[366484659,1750284635052,-400.89997093,0.00021917,6]
[366484660,1750284635061,-450.0,0.00021917,6]
[366484661,1750284635070,-460.0,0.00021917,6]
[366484662,1750284635079,-301.74819044,0.00021917,6]
[366484663,1750284635089,-460.0,0.00021917,6]
[366484664,1750284635101,-450.0,0.00021917,6]
[366484665,1750284635110,-460.0,0.00021917,6]
[366484666,1750284635119,-460.0,0.00021917,6]
[366484667,1750284635128,-662.88,0.00021917,6]
[366484668,1750284635138,-430.0,0.00021917,6]
[366484669,1750284635147,-450.33296573,0.00021917,6]
[366484670,1750284635156,-450.0,0.00021917,6]
[366484671,1750284635165,-460.0,0.00021917,6]
[366484672,1750284635174,-460.0,0.00021917,6]
[366484673,1750284635183,-460.0,0.00021917,6]
[366484674,1750284635192,-1833.98,0.00021917,6]
[366484675,1750284635201,-562.99,0.00021917,6]
[366484676,1750284635210,-430.64807972,0.00021917,6]
[366484677,1750284635219,-568.72,0.00021917,6]
[366484678,1750284635228,-460.0,0.00021917,6]
[366484679,1750284635238,-460.0,0.00021917,6]
[366484680,1750284635249,-460.0,0.00021917,6]
[366484681,1750284635259,-460.0,0.00021917,6]
[366484682,1750284635269,-1477.08,0.00021917,6]
[366484683,1750284635279,-450.0,0.00021917,6]
[366484684,1750284635289,-430.0,0.00021917,6]
[366484685,1750284635299,-430.0,0.00021917,6]
[366484686,1750284635308,-460.0,0.00021917,6]
[366484687,1750284635318,-430.0,0.00021917,6]
[366484688,1750284635327,-460.0,0.00021917,6]
[366484689,1750284635337,-1384.66,0.00021917,6]
[366484690,1750284635346,-460.0,0.00021917,6]
[366484691,1750284635356,-430.0,0.00021917,6]
[366484692,1750284635365,-430.0,0.00021917,6]
[366484693,1750284635375,-430.0,0.00021917,6]
[366484694,1750284635384,-152.89878652,0.00021917,6]
[366484695,1750284635394,-460.0,0.00021917,6]
[366484696,1750284635403,-460.0,0.00021917,6]
[366484697,1750284635413,-351.19887758,0.00021917,6]
[366484698,1750284635422,-460.0,0.00021917,6]
[366484699,1750284635432,-460.0,0.00021917,6]
[366484700,1750284635442,-155.65,0.00021917,6]
[366484701,1750284635451,-460.0,0.00021917,6]
[366484702,1750284635461,-367.67524513,0.00021917,6]
[366484703,1750284635471,-587.34241287,0.00021917,6]
[366484704,1750284635480,-1108.01,0.00021917,6]
[366484705,1750284635491,-878.9,0.00021917,6]
[366484706,1750284635707,-535.31,0.00021917,6]
[366484707,1750284635717,-460.0,0.00021917,6]
[366484708,1750284635726,-450.0,0.00021917,6]
[366484709,1750284635736,-460.0,0.00021917,6]
[366484710,1750284635745,-460.0,0.00021917,6]
[366484711,1750284635754,-430.0,0.00021917,6]
[366484712,1750284635763,-360.0,0.00021917,6]
[366484713,1750284635772,-460.0,0.00021917,6]
[366484714,1750284635780,-1993.22,0.00021917,6]
[366484715,1750284635788,-430.0,0.00021917,6]
[366484716,1750284635797,-460.0,0.00021917,6]
[366484717,1750284635806,-1992.3,0.00021917,6]
[366484718,1750284635816,-451.61966294,0.00021917,6]
[366484719,1750284635825,-430.0,0.00021917,6]
[366484720,1750284635834,-450.0,0.00021917,6]
[366484721,1750284635843,-2122.37,0.00021917,6]
[366484722,1750284635852,-431.92347521,0.00021917,6]
[366484723,1750284635861,-460.0,0.00021917,6]
[366484724,1750284635870,-430.0,0.00021917,6]
[366484725,1750284635879,-430.0,0.00021917,6]
[366484726,1750284635888,-460.0,0.00021917,6]
[366484727,1750284635897,-460.0,0.00021917,6]
[366484728,1750284635906,-430.0,0.00021917,6]
[366484729,1750284635916,-1799.62,0.00021917,6]
[366484730,1750284635925,-400.0,0.00021917,6]
[366484731,1750284635935,-430.0,0.00021917,6]
[366484732,1750284635945,-460.0,0.00021917,6]
[366484733,1750284635954,-430.0,0.00021917,6]
[366484734,1750284635963,-460.0,0.00021917,6]
[366484735,1750284635972,-400.0,0.00021917,6]
[366484736,1750284635981,-430.0,0.00021917,6]
[366484737,1750284635991,-460.0,0.00021917,6]
[366484738,1750284636000,-430.0,0.00021917,6]
[366484739,1750284636010,-2911.34,0.00021917,6]
[366484740,1750284636019,-430.0,0.00021917,6]
[366484741,1750284636028,-400.0,0.00021917,6]
[366484742,1750284636038,-476.31,0.00021917,6]
[366484743,1750284636055,-460.0,0.00021917,6]
[366484744,1750284636068,-501.07368235,0.00021917,6]
[366484745,1750284636078,-430.0,0.00021917,6]
[366484746,1750284636089,-3406.52,0.00021917,6]
[366484747,1750284636101,-450.0,0.00021917,6]
[366484748,1750284636110,-430.0,0.00021917,6]
[366484749,1750284636120,-236.64366156,0.00021917,6]
[366484750,1750284636130,-460.0,0.00021917,6]
[366484751,1750284636140,-430.0,0.00021917,6]
[366484752,1750284636149,-290.96987757,0.00021917,6]
[366484753,1750284636159,-430.0,0.00021917,6]
[366484754,1750284636170,-430.0,0.00021917,6]
[366484755,1750284636179,-555.7676786,0.00021917,6]
[366484756,1750284636188,-514.55,0.00021917,6]
[366484757,1750284636198,-420.0,0.00021917,6]
[366484758,1750284636207,-1027.93435655,0.00022038,6]
[366484759,1750284636217,-214.73968683,0.00022073,2]
[366484760,1750284636227,-24886.12983036,0.00022091,2]
[366484761,1750284636237,-207.4,0.0002212,2]
[366484762,1750284636247,-500.0,0.0002212,2]
[366484763,1750284636257,-500.0,0.0002212,2]
[366484764,1750284636267,-500.0,0.0002212,2]
[366484765,1750284636277,-5000.0,0.0002212,2]
[366484766,1750284636286,-500.0,0.0002212,2]
[366484767,1750284636296,-500.0,0.0002212,2]
[366484768,1750284636306,-500.0,0.0002212,2]
[366484769,1750284636316,-500.0,0.0002212,2]
[366484770,1750284636325,-500.0,0.0002212,2]
[366484771,1750284636335,-500.0,0.0002212,2]
[366484772,1750284636345,-500.0,0.0002212,2]
[366484773,1750284636354,-500.0,0.0002212,2]
[366484774,1750284636363,-500.0,0.0002212,2]
[366484775,1750284636372,-500.0,0.0002212,2]
[366484776,1750284636382,-500.0,0.0002212,2]
[366484777,1750284636392,-500.0,0.0002212,2]
[366484778,1750284636402,-500.0,0.00022173,2]
[366484779,1750284636412,-1027.93435655,0.00022176,6]
[366484780,1750284636421,-400.0,0.00022191,6]
[366484781,1750284636431,-460.0,0.00022191,6]
[366484782,1750284636441,-236.59784606,0.00022191,6]
[366484783,1750284636451,-380.0,0.00022191,6]
[366484784,1750284636461,-460.0,0.00022191,6]
[366484785,1750284636470,-460.0,0.00022191,6]
[366484786,1750284636479,-460.0,0.00022191,6]
[366484787,1750284636490,-460.0,0.00022191,6]
[366484788,1750284636500,-274.57894625,0.00022191,6]
[366484789,1750284636509,-205.06760226,0.00022191,6]
[366484790,1750284636519,-460.0,0.00022191,6]
[366484791,1750284636528,-460.0,0.00022191,6]
[366484792,1750284636538,-460.0,0.00022191,6]
[366484793,1750284636547,-460.0,0.00022191,6]
[366484794,1750284636556,-430.0,0.00022191,6]
[366484795,1750284636566,-460.0,0.00022191,6]
[366484796,1750284636575,-152.18265933,0.00022191,6]
[366484797,1750284636585,-460.0,0.00022191,6]
[366484798,1750284636595,-460.0,0.00022191,6]
[366484799,1750284636604,-581.23,0.00022191,6]
[366484800,1750284636614,-460.0,0.00022191,6]
[366484801,1750284636623,-497.35,0.00022191,6]
[366484802,1750284636633,-460.0,0.00022191,6]
[366484803,1750284636643,-400.0,0.00022191,6]
[366484804,1750284636652,-400.0,0.00022191,6]
[366484805,1750284636662,-479.70322068,0.00022191,6]
[366484806,1750284636671,-191.45913133,0.00022191,6]
[366484807,1750284636681,-460.0,0.00022191,6]
[366484808,1750284636691,-460.0,0.00022191,6]
[366484809,1750284636700,-658.34,0.00022191,6]
[366484810,1750284636713,-460.0,0.00022191,6]
[366484811,1750284636723,-420.0,0.00022191,6]
[366484812,1750284636732,-460.0,0.00022191,6]
[366484813,1750284636743,-400.0,0.00022191,6]
[366484814,1750284636752,-360.0,0.00022191,6]
[366484815,1750284636764,-658.06,0.00022191,6]
[366484816,1750284636774,-462.43,0.00022191,6]
[366484817,1750284636783,-460.0,0.00022191,6]
[366484818,1750284636792,-460.0,0.00022191,6]
[366484819,1750284636802,-460.0,0.00022191,6]
[366484820,1750284636811,-460.0,0.00022191,6]
[366484821,1750284636821,-460.0,0.00022191,6]
[366484822,1750284636831,-159.96595807,0.00022191,6]
[366484823,1750284636855,-53.55750746,0.00022191,6]
[366484824,1750284636864,-460.0,0.00022191,6]
[366484825,1750284636874,-460.0,0.00022191,6]